bitfinex/quotes_SOLUSD_20220118
["timestamp","ask_amount","ask_price","bid_price","bid_amount"]
[1642484626770,17.316,138.83,138.75,9.132]
[1642484628173,17.316,138.83,138.75,19.9402]
[1642484632872,20.198,138.83,138.75,17.0582]
[1642484636377,42.8404,138.83,138.75,17.0582]
[1642484638384,39.9584,138.83,138.75,19.9402]
[1642484640717,17.316,138.83,138.75,19.9402]
[1642484640916,10.81,138.83,138.75,17.0582]
[1642484642017,10.81,138.83,138.75,19.9402]
[1642484648324,34.0284,138.83,138.75,19.9402]
[1642484649031,2.882,138.82,138.75,6.25]
[1642484649231,10.8101,138.81,138.75,6.25]
[1642484649430,2.882,138.8,138.75,6.25]
[1642484649630,37.36203471,138.79,138.75,6.25]
[1642484650031,37.36203471,138.79,138.75,0.25]
[1642484650232,37.36203471,138.79,138.75,6.25]
[1642484650432,37.36203471,138.79,138.76,0.25]
[1642484650631,10.8103,138.8,138.76,0.25]
[1642484650832,1.16802862,138.81,138.76,0.25]
[1642484651536,49.1757928,138.81,138.75,0.25]
[1642484653538,59.9853928,138.81,138.75,0.25]
[1642484659466,0.25,138.8,138.72,2.882]
[1642484659669,10.8121,138.78,138.72,2.882]
[1642484659866,3.132,138.77,138.72,2.882]
[1642484660068,46.7076961,138.76,138.72,2.882]
[1642484660767,57.5211961,138.76,138.72,2.882]
[1642484660969,57.5211961,138.76,138.72,8.882]
[1642484661169,57.5211961,138.76,138.72,2.882]
[1642484661467,57.5211961,138.76,138.72,8.882]
[1642484663272,10.8135,138.76,138.72,8.882]
[1642484663472,10.8132,138.78,138.72,6.0]
[1642484663872,10.8132,138.78,138.7,29.3256]
[1642484664072,10.8132,138.78,138.71,0.25]
[1642484664972,34.2993,138.78,138.71,0.25]
[1642484665175,13.6955,138.77,138.71,0.25]
[1642484665374,13.9455,138.77,138.7,29.3256]
[1642484666874,13.9455,138.77,138.71,0.25]
[1642484670178,3.132,138.77,138.71,0.25]
[1642484670776,2.882,138.77,138.71,0.25]
[1642484671379,2.882,138.77,138.71,11.0615]
[1642484671578,2.883,138.8,138.72,2.883]
[1642484671782,2.883,138.8,138.73,0.25]
[1642484671977,37.36952862,138.81,138.73,0.25]
[1642484672180,0.25,138.8,138.73,0.25]
[1642484673681,0.25,138.8,138.73,11.06]
[1642484673980,0.25,138.8,138.73,17.06]
[1642484677385,0.25,138.8,138.73,6.25]
[1642484677585,11.0613,138.8,138.73,0.25]
[1642484677785,11.0613,138.8,138.73,6.25]
[1642484678585,13.9433,138.8,138.73,6.25]
[1642484678784,13.9433,138.8,138.73,0.25]
[1642484678986,24.2174,138.79,138.73,6.25]
[1642484679686,0.25,138.78,138.72,39.9606]
[1642484679888,70.07177323,138.79,138.73,0.25]
[1642484685890,24.2174,138.79,138.73,0.25]
[1642484687103,65.99198133,138.79,138.73,0.25]
[1642484690598,24.2174,138.79,138.73,0.25]
[1642484691801,65.35046982,138.79,138.73,0.25]
[1642484693230,65.35046982,138.79,138.72,39.9608]
[1642484693429,65.35046982,138.79,138.73,0.25]
[1642484697433,0.25,138.78,138.72,39.9608]
[1642484697634,2.882,138.78,138.72,29.15]
[1642484697836,68.23246982,138.79,138.72,29.15]
[1642484698435,0.25,138.78,138.72,29.15]
[1642484698635,2.882,138.77,138.72,29.15]
[1642484699233,3.132,138.78,138.72,29.15]
[1642484704145,13.9448,138.78,138.72,29.15]
[1642484707444,2.882,138.78,138.73,0.25]
[1642484707643,24.2174,138.79,138.73,0.25]
[1642484709551,4.05002862,138.81,138.76,0.7265903]
[1642484709750,1.16802862,138.81,138.76,0.7265903]
[1642484709951,1.16802862,138.81,138.77,0.7265706]
[1642484710349,1.16802862,138.81,138.77,0.9765706]
[1642484710751,3.79929467,138.84,138.77,19.4855706]
[1642484710952,3.79929467,138.84,138.77,29.7155706]
[1642484711150,3.79929467,138.84,138.77,35.9755706]
[1642484711575,3.79929467,138.84,138.77,107.9955706]
[1642484711777,3.79929467,138.86,138.77,107.9955706]
[1642484711976,3.79929467,138.86,138.8,10.8042]
[1642484712275,3.79929467,138.86,138.81,0.25]
[1642484712475,3.29929467,138.86,138.81,0.25]
[1642484713574,3.29929467,138.86,138.81,11.0537]
[1642484713775,37.9296983,138.88,138.81,6.25]
[1642484713975,2.88,138.87,138.81,6.25]
[1642484714178,3.13,138.87,138.81,6.25]
[1642484714675,2.88,138.87,138.81,0.25]
[1642484714877,2.88,138.87,138.84,0.7265903]
[1642484715177,2.88,138.89,138.85,6.06439994]
[1642484715376,2.88,138.89,138.86,0.7265706]
[1642484715574,2.88,138.9,138.86,0.7265706]
[1642484715775,10.8042,138.89,138.86,0.7265706]
[1642484716274,3.13,138.9,138.86,0.7265706]
[1642484717476,19.32451447,138.92,138.86,0.7265706]
[1642484717679,8.52221447,138.92,138.86,0.7265706]
[1642484717877,0.25,138.91,138.86,0.7265706]
[1642484718677,4.20184695,138.91,138.86,0.7265706]
[1642484720083,2.88,138.93,138.86,0.7265706]
[1642484720280,26.0392,138.94,138.88,0.7265903]
[1642484720681,0.25,138.93,138.89,0.7265706]
[1642484721681,2.879,138.94,138.89,0.7265706]
[1642484721883,34.47642671,138.97,138.89,72.9965706]
[1642484722084,31.59742671,138.97,138.9,2.879]
[1642484722285,7.22502671,138.97,138.91,0.25]
[1642484722483,7.22502671,138.97,138.91,3.128]
[1642484722886,1.58281224,138.97,138.91,9.128]
[1642484723685,1.58281224,138.97,138.92,10.7952]
[1642484723889,1.58281224,138.97,138.93,0.25]
[1642484725485,1.58281224,138.97,138.95,0.7265903]
[1642484725684,1.58281224,138.97,138.96,6.06439994]
[1642484725885,1.58281224,138.97,138.96,7.04097054]
[1642484726286,5.64221447,139.01,138.96,7.04097054]
[1642484727489,4.10170433,139.01,138.96,7.04097054]
[1642484728089,4.10170433,139.01,138.96,13.04097054]
[1642484728488,4.10170433,139.01,138.97,0.25]
[1642484729791,4.10170433,139.01,138.96,6.9765706]
[1642484730192,4.10170433,139.01,138.96,0.9765706]
[1642484730792,4.10170433,139.01,138.98,0.7265903]
[1642484731191,4.10170433,139.01,139.0,0.7265706]
[1642484731393,4.35170433,139.01,139.0,0.7265706]
[1642484732392,4.10170433,139.01,139.0,0.7265706]
[1642484732795,15.14640433,139.01,139.0,0.7265706]
[1642484733195,14.89640433,139.01,139.0,3.75877057]
[1642484733393,4.10170433,139.01,139.0,6.79097054]
[1642484734194,4.10170433,139.02,139.0,6.79097054]
[1642484736294,4.10170433,139.02,139.0,6.06439994]
[1642484736499,4.10170433,139.03,139.01,0.7265706]
[1642484737298,14.89480433,139.03,139.01,0.7265706]
[1642484738300,4.10170433,139.02,139.01,0.7265706]
[1642484739600,4.10170433,139.02,139.01,4.00877057]
[1642484739802,5.64221447,139.04,139.02,28.0]
[1642484740001,2.876,139.09,139.03,77.92819997]
[1642484740204,10.23915349,139.11,139.03,78.17819997]
[1642484740500,10.23915349,139.11,139.04,10.23]
[1642484740701,6.15026878,139.08,139.04,10.23]
[1642484740901,6.15026878,139.08,139.05,0.25]
[1642484741102,6.15026878,139.08,139.06,0.7265903]
[1642484741903,48.76030102,139.09,139.07,3.75877057]
[1642484742103,32.0,139.07,139.03,2.876]
[1642484742302,32.0,139.07,138.99,10.7893]
[1642484742303,0.25,139.06,139.0,2.876]
[1642484742502,48.16893126,139.04,138.96,2.876]
[1642484743204,50.21874503,139.04,138.96,2.876]
[1642484743503,61.01124503,139.04,138.97,0.25]
[1642484743903,61.01124503,139.04,138.96,6.0]
[1642484744104,2.04981377,139.01,138.96,6.0]
[1642484744303,2.04981377,139.01,138.95,43.7542]
[1642484745008,2.04981377,139.0,138.95,43.7542]
[1642484745235,44.63001928,138.99,138.95,19.106]
[1642484745429,44.63001928,138.99,138.96,0.25]
[1642484746229,44.63001928,138.99,138.97,6.06439994]
[1642484746630,46.67983305,138.99,138.98,0.25]
[1642484748433,46.67983305,138.99,138.94,13.6711]
[1642484748630,46.67983305,138.99,138.94,2.878]
[1642484748831,49.55783305,138.99,138.92,6.0]
[1642484749231,51.34688577,138.99,138.9,7.94697358]
[1642484749434,2.04981377,138.98,138.89,1.94697358]
[1642484749634,2.879,138.97,138.89,7.94697358]
[1642484749831,0.25,138.96,138.89,1.94697358]
[1642484750031,2.879,138.95,138.89,1.94697358]
[1642484750233,44.9116795,138.94,138.89,1.94697358]
[1642484750633,44.9116795,138.94,138.87,1.94697358]
[1642484750833,44.9116795,138.94,138.88,0.25]
[1642484751232,55.7128795,138.94,138.87,1.94697358]
[1642484751434,3.129,138.93,138.87,1.94697358]
[1642484751634,5.17881377,138.93,138.84,4.82597358]
[1642484752535,10.8022,138.92,138.84,10.82597358]
[1642484752732,10.8022,138.92,138.85,0.25]
[1642484752940,12.85201377,138.92,138.85,0.25]
[1642484753938,2.04981377,138.92,138.85,0.25]
[1642484754339,2.04981377,138.92,138.85,72.27]
[1642484754540,2.04981377,138.92,138.86,2.88]
[1642484754743,2.04981377,138.92,138.87,21.027]
[1642484754945,2.04981377,138.92,138.88,74.899]
[1642484755143,2.04981377,138.92,138.89,10.23]
[1642484755343,2.04981377,138.92,138.9,2.879]
[1642484755545,2.04981377,138.92,138.9,13.109]
[1642484755743,2.04981377,138.92,138.91,6.31439994]
[1642484755943,2.879,138.93,138.91,6.31439994]
[1642484756143,2.04981377,138.96,138.92,34.0]
[1642484756344,2.04981377,138.96,138.93,3.128]
[1642484756544,2.04981377,138.96,138.93,8.775]
[1642484756744,24.7026,139.02,138.93,15.035]
[1642484756745,2.04981377,138.97,138.93,15.035]
[1642484757444,2.04981377,138.97,138.93,25.8285]
[1642484757745,2.04981377,138.99,138.94,72.02]
[1642484758246,2.04981377,138.99,138.95,0.25]
[1642484758445,2.04981377,138.99,138.95,11.042]
[1642484758646,2.04981377,138.99,138.95,0.25]
[1642484758846,2.04981377,139.0,138.95,6.25]
[1642484759349,2.04981377,139.0,138.95,0.25]
[1642484759549,2.04981377,139.0,138.94,0.25]
[1642484761555,2.04981377,139.0,138.94,11.0437]
[1642484761754,2.04981377,139.0,138.94,17.0437]
[1642484762253,2.04981377,139.0,138.94,27.5337]
[1642484762455,2.04981377,139.0,138.95,72.02]
[1642484762660,2.04981377,139.0,138.96,10.23]
[1642484762858,2.04981377,139.0,138.96,88.76]
[1642484763657,2.04981377,139.0,138.96,99.5504]
[1642484763882,2.04981377,139.0,138.96,99.2904]
[1642484764058,2.04981377,139.0,138.97,2.878]
[1642484764260,2.04981377,139.02,138.98,6.31439994]
[1642484765560,2.04981377,139.02,138.98,12.31439994]
[1642484765766,2.04981377,139.0,138.98,12.06439994]
[1642484765963,42.43053584,139.0,138.94,2.876]
[1642484766362,42.43053584,139.0,138.95,0.25]
[1642484766562,2.878,139.02,138.94,2.876]
[1642484766563,2.04981377,138.99,138.94,6.0]
[1642484767063,2.878,139.06,138.96,40.0]
[1642484767264,4.41024885,139.09,138.97,10.23]
[1642484767463,45.96699557,139.09,138.98,2.876]
[1642484767762,45.96699557,139.09,138.99,10.23]
[1642484767963,56.75599557,139.09,139.0,2.876]
[1642484768166,56.75599557,139.09,139.0,3.126]
[1642484768362,45.96699557,139.09,139.0,9.126]
[1642484769062,45.96699557,139.09,139.01,10.23]
[1642484769264,45.96699557,139.09,139.02,0.25]
[1642484770965,4.41024885,139.09,139.02,0.25]
[1642484774667,15.19944885,139.09,139.02,0.25]
[1642484775669,10.7907,139.07,139.01,8.876]
[1642484775869,2.876,139.06,139.01,8.876]
[1642484776069,48.06522568,139.05,139.01,2.876]
[1642484777070,48.06522568,139.05,139.02,0.25]
[1642484777472,48.06522568,139.05,138.98,2.876]
[1642484777685,50.94122568,139.05,138.98,6.0]
[1642484777875,50.94122568,139.05,138.99,0.25]
[1642484778076,50.94122568,139.05,138.97,16.7912]
[1642484778275,50.94122568,139.05,138.99,0.25]
[1642484779297,50.94122568,139.05,138.98,0.25]
[1642484780801,48.06522568,139.05,138.98,0.25]
[1642484783004,48.06522568,139.05,138.99,2.876]
[1642484783208,2.876,139.04,138.98,0.25]
[1642484784607,48.06522568,139.05,138.98,3.126]
[1642484785305,48.06522568,139.05,138.98,9.126]
[1642484785506,48.06522568,139.05,138.98,3.126]
[1642484785906,50.94122568,139.05,138.98,3.126]
[1642484786108,61.73332568,139.05,138.98,9.126]
[1642484786306,61.73332568,139.05,138.98,3.126]
[1642484786709,0.25,139.04,138.98,2.876]
[1642484786907,13.106,139.03,138.89,10.23]
[1642484787107,72.02,139.02,138.89,10.23]
[1642484787308,38.6896801,139.0,138.89,10.23]
[1642484787510,2.878,138.99,138.89,10.23]
[1642484787712,3.128,138.99,138.89,10.23]
[1642484788511,13.9247,138.99,138.9,10.7969]
[1642484788911,2.878,138.99,138.91,0.25]
[1642484789111,2.878,139.01,138.92,2.878]
[1642484789314,2.878,139.04,138.93,0.25]
[1642484789512,2.878,139.04,138.94,2.878]
[1642484789811,2.876,139.06,138.95,0.25]
[1642484790012,35.4747576,139.07,138.96,2.876]
[1642484790212,2.876,139.06,138.96,2.876]
[1642484790412,2.876,139.06,138.97,0.25]
[1642484791613,13.667,139.06,138.97,11.041]
[1642484791814,13.667,139.06,138.97,17.041]
[1642484792613,35.4747576,139.07,138.98,13.6662]
[1642484792813,2.876,139.08,138.99,0.25]
[1642484793115,2.876,139.08,139.0,2.876]
[1642484793314,1.53424885,139.09,139.01,0.25]
[1642484793713,1.53424885,139.09,139.01,84.35238456]
[1642484793914,1.53424885,139.09,139.01,94.58238456]
[1642484794114,1.53424885,139.09,139.01,100.84238456]
[1642484794714,1.53424885,139.09,139.04,10.786]
[1642484795114,1.53424885,139.09,139.05,0.25]
[1642484795314,26.0095,139.14,139.06,2.876]
[1642484795515,23.1335,139.14,139.06,2.876]
[1642484795716,23.1335,139.14,139.07,0.25]
[1642484796115,63.75228065,139.14,139.07,0.25]
[1642484796515,74.53758065,139.14,139.07,0.25]
[1642484797118,40.61878065,139.14,139.07,72.27]
[1642484797319,40.61878065,139.14,139.07,78.53]
[1642484797646,2.875,139.15,139.07,78.53]
[1642484797819,4.23984485,139.16,139.07,88.76]
[1642484798018,4.23984485,139.16,139.09,10.782]
[1642484798420,4.23984485,139.16,139.1,0.25]
[1642484798618,49.54950228,139.15,139.1,0.25]
[1642484799020,4.23984485,139.16,139.1,0.25]
[1642484799220,1.36484485,139.16,139.1,11.0313]
[1642484799618,1.36484485,139.16,139.1,19.9063]
[1642484800020,1.36484485,139.16,139.1,17.0313]
[1642484805253,5.4617081,139.16,139.1,17.0313]
[1642484806254,5.4617081,139.16,139.1,6.25]
[1642484806654,5.4617081,139.16,139.1,0.25]
[1642484806853,5.4617081,139.16,139.09,0.25]
[1642484807554,5.4617081,139.16,139.09,11.0321]
[1642484807756,5.4617081,139.16,139.09,17.0321]
[1642484807957,5.4617081,139.16,139.1,2.875]
[1642484808357,5.4617081,139.16,139.11,0.25]
[1642484808558,8.3357081,139.16,139.11,0.25]
[1642484808956,5.4617081,139.16,139.11,0.25]
[1642484809359,5.4617081,139.16,139.11,3.124]
[1642484809758,5.4617081,139.16,139.11,9.124]
[1642484810561,5.4617081,139.16,139.11,6.25]
[1642484812461,5.4617081,139.16,139.11,0.25]
[1642484812665,5.4617081,139.16,139.11,6.25]
[1642484814162,5.4617081,139.16,139.11,0.25]
[1642484814361,5.4617081,139.16,139.11,6.25]
[1642484814562,5.4617081,139.16,139.11,6.0]
[1642484814761,5.4617081,139.16,139.12,0.25]
[1642484815865,5.4617081,139.16,139.11,0.25]
[1642484821571,5.4617081,139.16,139.09,0.25]
[1642484822674,16.2446081,139.16,139.09,0.25]
[1642484823904,2.875,139.15,139.09,0.25]
[1642484824074,2.875,139.15,139.08,0.25]
[1642484824075,10.7849,139.14,139.08,0.25]
[1642484824277,3.125,139.13,139.06,6.0]
[1642484824476,41.65593876,139.12,139.05,6.0]
[1642484824675,2.875,139.11,139.03,19.105]
[1642484824874,2.875,139.11,139.03,16.23]
[1642484825676,22.1618,139.11,139.04,0.25]
[1642484826075,22.1618,139.11,139.02,0.25]
[1642484827075,4.09686325,139.1,139.02,0.25]
[1642484827276,13.6645,139.09,139.02,0.25]
[1642484828675,10.7885,139.09,139.02,3.126]
[1642484828877,10.7885,139.09,139.02,9.126]
[1642484829278,10.2885,139.09,139.02,9.126]
[1642484831680,14.38536325,139.09,139.02,9.126]
[1642484835484,10.2885,139.09,139.02,9.126]
[1642484840119,10.2885,139.09,139.02,3.126]
[1642484840317,56.60111288,139.07,139.02,0.25]
[1642484840717,56.60111288,139.07,139.01,0.25]
[1642484841518,56.60111288,139.07,139.0,8.876]
[1642484841919,56.60111288,139.07,139.0,2.876]
[1642484842518,56.60111288,139.07,139.0,8.876]
[1642484842719,40.43386325,139.09,139.0,13.6651]
[1642484842919,26.76876325,139.09,139.01,0.25]
[1642484843322,22.6719,139.09,139.01,0.25]
[1642484844222,22.6719,139.09,139.01,11.0376]
[1642484844421,22.6719,139.09,139.01,17.0376]
[1642484844622,22.6719,139.09,139.02,2.876]
[1642484844823,22.6719,139.09,139.03,0.25]
[1642484845823,22.6719,139.09,139.02,19.6632]
[1642484846027,2.876,139.08,139.02,16.7872]
[1642484846225,22.6719,139.09,139.02,16.7872]
[1642484847230,22.6719,139.09,139.03,0.25]
[1642484856851,2.876,139.1,139.03,0.25]
[1642484857049,2.876,139.1,139.03,11.0366]
[1642484857251,2.876,139.1,139.03,17.0366]
[1642484857970,50.3912908,139.12,139.03,17.0366]
[1642484858168,50.3912908,139.12,139.03,40.8585]
[1642484858569,46.29442755,139.12,139.03,40.8585]
[1642484859672,46.29442755,139.12,139.04,2.876]
[1642484859872,46.29442755,139.12,139.05,11.0349]
[1642484860272,4.09686325,139.12,139.05,27.2649]
[1642484861074,6.97186325,139.15,139.06,2.875]
[1642484861273,48.9341563,139.12,139.07,11.0331]
[1642484861479,48.9341563,139.12,139.07,0.25]
[1642484861674,48.9341563,139.12,139.07,6.25]
[1642484863077,48.9341563,139.12,139.07,0.25]
[1642484863277,48.9341563,139.12,139.05,44.309]
[1642484863278,48.9341563,139.12,139.06,0.25]
[1642484866881,48.9341563,139.12,139.05,41.434]
[1642484867081,59.7206563,139.12,139.05,6.0]
[1642484867284,59.7206563,139.12,139.04,19.661]
[1642484867480,2.876,139.11,139.04,19.661]
[1642484868082,2.876,139.11,139.04,13.661]
[1642484868283,2.876,139.11,139.05,0.25]
[1642484868683,2.876,139.11,139.05,11.0351]
[1642484868884,53.03101955,139.12,139.05,10.7851]
[1642484869287,53.03101955,139.12,139.05,16.7851]
[1642484869683,48.9341563,139.12,139.05,16.7851]
[1642484870186,2.875,139.11,139.05,16.7851]
[1642484870385,2.875,139.11,139.06,0.25]
[1642484870583,4.09686325,139.13,139.06,11.0342]
[1642484870584,6.97186325,139.13,139.06,11.0342]
[1642484870786,6.97186325,139.13,139.06,17.0342]
[1642484871386,53.55131383,139.13,139.06,11.0342]
[1642484871585,53.55131383,139.13,139.06,17.0342]
[1642484872489,53.55131383,139.13,139.06,16.7842]
[1642484873085,6.97186325,139.13,139.06,16.7842]
[1642484873286,6.97186325,139.13,139.06,99.0342]
[1642484873584,4.09686325,139.13,139.06,27.0142]
[1642484873785,4.09686325,139.13,139.07,0.25]
[1642484873986,4.09686325,139.13,139.08,10.7816]
[1642484874387,4.09686325,139.13,139.09,0.25]
[1642484874587,70.00609681,139.15,139.09,3.125]
[1642484874886,70.00609681,139.15,139.09,9.125]
[1642484875089,70.00609681,139.15,139.09,19.907]
[1642484875287,45.34679681,139.15,139.09,17.032]
[1642484875789,49.44366006,139.15,139.09,17.032]
[1642484878492,4.09686325,139.15,139.09,17.032]
[1642484879296,8.19434747,139.15,139.09,17.032]
[1642484879496,8.19434747,139.15,139.09,89.052]
[1642484879696,8.19434747,139.15,139.09,17.032]
[1642484880300,4.09686325,139.16,139.09,17.292]
[1642484880498,4.09686325,139.16,139.1,2.875]
[1642484880702,4.09686325,139.16,139.11,10.7782]
[1642484880899,4.09686325,139.16,139.11,25.1092]
[1642484881098,4.09686325,139.16,139.11,97.1292]
[1642484881298,8.193388,139.18,139.11,97.1292]
[1642484881500,8.193388,139.18,139.12,2.874]
[1642484881901,8.193388,139.18,139.13,0.25]
[1642484882101,8.193388,139.18,139.13,11.0276]
[1642484882300,8.193388,139.18,139.13,16.7776]
[1642484882500,68.67635825,139.2,139.13,16.7776]
[1642484882901,74.67635825,139.2,139.13,16.7776]
[1642484883101,74.67635825,139.2,139.13,6.0]
[1642484883302,74.67635825,139.2,139.11,16.78]
[1642484883502,8.19329533,139.19,139.11,16.78]
[1642484883702,2.874,139.18,139.11,16.78]
[1642484883929,2.874,139.18,139.12,0.25]
[1642484885233,6.97086325,139.18,139.12,0.25]
[1642484886832,6.97086325,139.18,139.1,0.25]
[1642484887735,17.75296325,139.18,139.1,0.25]
[1642484888034,2.04842147,139.15,139.1,11.0313]
[1642484888433,2.04842147,139.15,139.1,17.0313]
[1642484888832,2.04842147,139.14,139.1,17.0313]
[1642484889433,8.19376584,139.17,139.11,10.23]
[1642484889635,8.19376584,139.17,139.12,10.7772]
[1642484889835,4.09686325,139.17,139.12,17.0272]
[1642484890637,2.875,139.19,139.12,17.0272]
[1642484890839,4.09686325,139.22,139.13,4.16827325]
[1642484891039,4.09686325,139.22,139.15,10.7758]
[1642484891238,4.09686325,139.22,139.16,3.123]
[1642484891738,4.09686325,139.23,139.16,9.123]
[1642484892140,4.09686325,139.23,139.17,12.06907325]
[1642484892338,4.09686325,139.23,139.18,13.353]
[1642484892539,4.09686325,139.23,139.18,55.0175]
[1642484892744,4.09686325,139.23,139.18,62.57177325]
[1642484893142,4.09686325,139.25,139.18,62.57177325]
[1642484893542,4.09686325,139.25,139.19,10.7708]
[1642484893940,4.09686325,139.25,139.2,0.25]
[1642484894141,2.59686325,139.25,139.2,0.25]
[1642484894641,38.98438711,139.27,139.2,0.25]
[1642484895041,38.98438711,139.27,139.19,0.25]
[1642484895543,38.98438711,139.27,139.21,10.7724]
[1642484895744,41.85638711,139.27,139.21,10.7724]
[1642484895943,41.85638711,139.27,139.22,0.25]
[1642484896143,2.872,139.27,139.22,0.25]
[1642484896344,2.872,139.28,139.22,0.25]
[1642484896946,2.872,139.28,139.22,11.022]
[1642484897344,2.872,139.28,139.22,17.022]
[1642484897542,0.07962902,139.29,139.22,17.022]
[1642484902851,0.07962902,139.29,139.22,16.772]
[1642484904352,0.07962902,139.29,139.24,10.7702]
[1642484904854,0.07962902,139.29,139.24,16.7702]
[1642484905354,0.07962902,139.29,139.24,6.0]
[1642484905552,2.872,139.28,139.24,6.0]
[1642484905751,2.872,139.28,139.23,10.7712]
[1642484905752,2.872,139.28,139.23,16.7712]
[1642484907353,0.07962902,139.29,139.24,0.25]
[1642484908055,4.17318628,139.29,139.24,0.25]
[1642484915966,4.17318628,139.29,139.22,0.25]
[1642484916764,4.17318628,139.29,139.22,11.0219]
[1642484916964,4.17318628,139.29,139.22,17.0219]
[1642484922806,4.17318628,139.29,139.22,22.7209]
[1642484923908,4.17318628,139.29,139.23,2.872]
[1642484924109,0.07962902,139.29,139.24,10.77]
[1642484924309,0.07962902,139.29,139.24,17.02]
[1642484932051,4.17296232,139.29,139.24,17.02]
[1642484933450,0.07962902,139.29,139.24,17.02]
[1642484936854,0.07962902,139.29,139.24,11.02]
[1642484937055,4.17297987,139.29,139.24,6.0]
[1642484937254,2.872,139.28,139.23,16.7713]
[1642484938355,2.872,139.28,139.24,0.25]
[1642484939556,2.95162902,139.29,139.24,0.25]
[1642484940758,2.95162902,139.29,139.25,2.872]
[1642484941061,2.95162902,139.29,139.25,9.927]
[1642484941257,2.95162902,139.29,139.26,0.25]
[1642484941458,2.95162902,139.29,139.27,6.06439994]
[1642484941772,0.07962902,139.29,139.27,12.06439994]
[1642484943261,0.07962902,139.29,139.28,0.25]
[1642484943860,0.07962902,139.29,139.27,12.06439994]
[1642484944960,0.07962902,139.29,139.27,6.06439994]
[1642484945160,0.07962902,139.29,139.25,2.871]
[1642484945360,0.07962902,139.29,139.26,0.25]
[1642484945960,0.07962902,139.29,139.19,2.872]
[1642484946159,40.04793717,139.27,139.19,27.8271]
[1642484946359,40.04793717,139.27,139.2,0.25]
[1642484947661,40.04793717,139.27,139.21,10.7721]
[1642484947860,40.04793717,139.27,139.22,0.25]
[1642484951969,13.72452902,139.29,139.22,0.25]
[1642484952169,13.72452902,139.29,139.22,11.022]
[1642484952368,2.95162902,139.29,139.22,17.022]
[1642484953172,44.92492386,139.29,139.22,17.022]
[1642484953371,42.05292386,139.29,139.24,10.7704]
[1642484953571,42.05292386,139.29,139.23,2.872]
[1642484953771,42.05292386,139.29,139.24,0.25]
[1642484954873,42.05292386,139.29,139.23,0.25]
[1642484955772,3.122,139.28,139.17,13.102]
[1642484955971,75.142,139.28,139.15,2.872]
[1642484956173,23.7696,139.27,139.15,2.872]
[1642484956373,3.123,139.26,139.15,8.872]
[1642484956574,22.5976,139.25,139.15,8.872]
[1642484956773,48.04952602,139.23,139.15,19.6487]
[1642484957172,48.04952602,139.23,139.16,0.25]
[1642484957374,22.5976,139.25,139.17,2.873]
[1642484957773,22.5976,139.25,139.18,11.025]
[1642484958176,22.5976,139.25,139.18,17.025]
[1642484958373,68.96414943,139.25,139.18,17.025]
[1642484958874,68.96414943,139.25,139.18,6.25]
[1642484959073,68.96414943,139.25,139.18,0.25]
[1642484959273,68.96414943,139.25,139.16,37.9266]
[1642484959274,3.123,139.24,139.17,0.25]
[1642484959474,2.873,139.24,139.17,0.25]
[1642484960581,10.7771,139.24,139.17,0.25]
[1642484961778,2.873,139.23,139.17,0.25]
[1642484963285,13.6501,139.24,139.17,0.25]
[1642484966385,0.25,139.23,139.17,0.25]
[1642484966585,13.6501,139.24,139.17,0.25]
[1642484967587,13.6501,139.24,139.17,11.0257]
[1642484967792,13.6501,139.24,139.17,17.0257]